[Event "1st Sakatam Open 2024"]
[Site "Guwahati"]
[Date "2024.03.24"]
[Round "4.4"]
[White "Nalinakhya Kashyap"]
[Black "Mishra, Neeraj-Kumar"]
[Result "1/2-1/2"]
[ECO "B40"]
[WhiteElo "1755"]
[BlackElo "2150"]
[Annotator "RC"]
[PlyCount "69"]
[EventDate "2024.03.24"]
[EventType "swiss"]
[EventCountry "IND"]
[SourceTitle "playchess.com"]
[Source "ChessBase"]
[SourceQuality "1"]
[TimeControl "5400+30"]

1. e4 {[%emt 0:00:04]} c5 {[%emt 0:00:40]} 2. Nf3 {[%emt 0:00:08]} e6 {[%emt 0:00:22]} 3. g3 {[%emt 0:00:11]} Nc6 {[%emt 0:00:35]} 4. Bg2 {[%emt 0:00:09]} a6 {[%emt 0:00:34]} 5. O-O {[%emt 0:00:10]} d6 {[%emt 0:00:53]} 6. Re1 {[%emt 0:00:10]} Nf6 {[%emt 0:00:55]} 7. c3 {[%emt 0:00:13]} Be7 {[%emt 0:01:29]} 8. d4 {[%emt 0:00:09]} cxd4 {[%emt 0:03:58]} 9. cxd4 {[%emt 0:00:05]} O-O {[%emt 0:00:20]} 10. Nc3 {[%emt 0:00:40]} Qc7 {[%emt 0:06:53]} 11. d5 {[%emt 0:11:26]} Ne5 {[%emt 0:02:25]} 12. Nxe5 {[%emt 0:04:42]} dxe5 {[%emt 0:00:07]} 13. Be3 {[%emt 0:00:44]} exd5 {[%emt 0:02:32]} 14. exd5 {[%emt 0:01:31]} Ng4 {[%emt 0:04:52]} 15. Ne4 {[%emt 0:06:13]} Nxe3 {[%emt 0:07:55]} 16. Rxe3 {[%emt 0:00:11]} Rd8 {[%emt 0:03:11]} 17. Rc1 {[%emt 0:03:27]} Qa5 {[%emt 0:01:49]} 18. d6 {[%emt 0:06:49]} Be6 {[%emt 0:00:41]} 19. Rd3 {[%emt 0:00:32]} Bf8 {[%emt 0:00:30]} 20. Nc5 {[%emt 0:06:20]} Qxa2 {[%emt 0:05:21]} 21. Nxb7 {[%emt 0:00:30]} Qxb2 {[%emt 0:01:34]} 22. Nxd8 {[%emt 0:02:08]} Rxd8 {[%emt 0:00:06]} 23. d7 {[%emt 0:04:40]} Rxd7 {[%emt 0:03:54]} 24. Rxd7 {[%emt 0:01:32]} Bxd7 {[%emt 0:00:07]} 25. Rc2 {[%emt 0:03:14]} Qb6 {[%emt 0:06:01]} 26. Rd2 {[%emt 0:03:10]} Be6 {[%emt 0:02:32]} 27. Bd5 {[%emt 0:03:37]} g6 {[%emt 0:02:50]} 28. Bxe6 {[%emt 0:00:59]} Qxe6 {[%emt 0:00:07]} 29. Qa4 {[%emt 0:00:42]} Bc5 {[%emt 0:01:07]} 30. Ra2 {[%emt 0:00:45]} Qb6 {[%emt 0:05:36]} 31. Qe8+ {[%emt 0:00:35]} Bf8 {[%emt 0:00:08]} 32. Qa4 {[%emt 0:00:17]} Bc5 {[%emt 0:08:05]} 33. Qe8+ {[%emt 0:00:15]} Bf8 {[%emt 0:00:23]} 34. Qa4 {[%emt 0:00:05]} Bc5 {[%emt 0:01:01]} 35. Qe8+ {[%emt 0:13:40]} 1/2-1/2

[Event "1st Sakatam Open 2024"]
[Site "Guwahati"]
[Date "2024.03.24"]
[Round "4.5"]
[White "Balkishan, A.."]
[Black "Shubham Kumar"]
[Result "1-0"]
[ECO "A25"]
[WhiteElo "2108"]
[BlackElo "1845"]
[Annotator "RC"]
[PlyCount "119"]
[EventDate "2024.03.24"]
[EventType "swiss"]
[EventCountry "IND"]
[SourceTitle "playchess.com"]
[Source "ChessBase"]
[SourceQuality "1"]
[TimeControl "5400+30"]

1. c4 {[%emt 0:04:50]} e5 {[%emt 0:01:14]} 2. Nc3 {[%emt 0:00:03]} Nf6 {[%emt 0:00:14]} 3. g3 {[%emt 0:00:10]} Nc6 {[%emt 0:00:16]} 4. Bg2 {[%emt 0:00:07]} Bb4 {[%emt 0:00:46]} 5. Nd5 {[%emt 0:00:22]} Bc5 {[%emt 0:05:53]} 6. e3 {[%emt 0:00:12]} d6 {[%emt 0:02:10]} 7. Ne2 {[%emt 0:00:08]} O-O {[%emt 0:01:17]} 8. O-O {[%emt 0:00:05]} a6 {[%emt 0:01:39]} 9. a3 {[%emt 0:05:05]} Nxd5 {[%emt 0:03:37]} 10. cxd5 {[%emt 0:00:19]} Ne7 {[%emt 0:00:27]} 11. d4 {[%emt 0:00:04]} Bb6 {[%emt 0:02:35]} 12. b4 {[%emt 0:03:31]} Bg4 {[%emt 0:05:06]} 13. dxe5 {[%emt 0:01:43]} dxe5 {[%emt 0:02:06]} 14. Bb2 {[%emt 0:00:03]} f6 {[%emt 0:01:48]} 15. h3 {[%emt 0:00:51]} Bh5 {[%emt 0:01:59]} 16. a4 {[%emt 0:05:22]} Nc8 {[%emt 0:02:45]} 17. g4 {[%emt 0:01:24]} Bf7 {[%emt 0:00:50]} 18. Rc1 {[%emt 0:01:03]} Nd6 {[%emt 0:02:13]} 19. Qc2 {[%emt 0:00:36]} Rc8 {[%emt 0:01:11]} 20. Kh1 {[%emt 0:00:58]} Bg6 {[%emt 0:06:03]} 21. Qb3 {[%emt 0:00:04]} Kh8 {[%emt 0:09:08]} 22. Ng3 {[%emt 0:00:19]} Qe7 {[%emt 0:01:00]} 23. Ba3 {[%emt 0:02:59]} f5 {[%emt 0:02:27]} 24. gxf5 {[%emt 0:00:35]} Bxf5 {[%emt 0:00:13]} 25. Bb2 {[%emt 0:07:56]} Qh4 {[%emt 0:11:45]} 26. a5 {[%emt 0:10:49]} Ba7 {[%emt 0:02:37]} 27. Bxe5 {[%emt 0:02:37]} Bxh3 {[%emt 0:01:47]} 28. Rxc7 {[%emt 0:00:56]} Rxc7 {[%emt 0:02:18]} 29. Bxd6 {[%emt 0:00:06]} Rcf7 {[%emt 0:01:52]} 30. Bxf8 {[%emt 0:00:25]} Rxf8 {[%emt 0:00:18]} 31. Kh2 {[%emt 0:05:24]} Bb8 {[%emt 0:03:30]} 32. Kg1 {[%emt 0:10:17]} Qg4 {[%emt 0:11:54]} 33. Qd1 {[%emt 0:03:39]} Qh4 {[%emt 0:04:49]} 34. Qh5 {[%emt 0:00:43]} Qxh5 {[%emt 0:01:46]} 35. Nxh5 {[%emt 0:00:13]} Bg4 {[%emt 0:02:08]} 36. Ng3 {[%emt 0:00:30]} h5 {[%emt 0:01:19]} 37. Ne4 {[%emt 0:03:31]} h4 {[%emt 0:01:09]} 38. f3 {[%emt 0:00:49]} Bf5 {[%emt 0:00:57]} 39. Ng5 {[%emt 0:00:51]} Ba7 {[%emt 0:02:42]} 40. Kf2 {[%emt 0:01:17]} Re8 {[%emt 0:00:06]} 41. Re1 {[%emt 0:00:22]} Rc8 {[%emt 0:01:32]} 42. Nf7+ {[%emt 0:04:33]} Kg8 {[%emt 0:00:51]} 43. Nd6 {[%emt 0:00:04]} Rc2+ {[%emt 0:00:24]} 44. Re2 {[%emt 0:00:08]} Rxe2+ {[%emt 0:01:07]} 45. Kxe2 {[%emt 0:00:04]} Bd7 {[%emt 0:00:17]} 46. Nxb7 {[%emt 0:00:55]} h3 {[%emt 0:00:07]} 47. Bh1 {[%emt 0:00:04]} g5 {[%emt 0:00:26]} 48. Nc5 {[%emt 0:00:51]} Bb5+ {[%emt 0:00:56]} 49. Kf2 {[%emt 0:00:03]} Bb8 {[%emt 0:00:12]} 50. Ne4 {[%emt 0:00:25]} Kg7 {[%emt 0:00:49]} 51. Nxg5 {[%emt 0:00:05]} Bd6 {[%emt 0:00:46]} 52. Ne6+ {[%emt 0:00:07]} Kf6 {[%emt 0:00:06]} 53. Nc5 {[%emt 0:00:05]} Kf5 {[%emt 0:00:27]} 54. f4 {[%emt 0:00:15]} Kg4 {[%emt 0:01:02]} 55. Bf3+ {[%emt 0:00:08]} Kh4 {[%emt 0:00:03]} 56. Be4 {[%emt 0:00:13]} Kg4 {[%emt 0:00:05]} 57. Bh1 {[%emt 0:07:47]} Be7 {[%emt 0:00:09]} 58. Bf3+ {[%emt 0:00:10]} Kf5 {[%emt 0:00:13]} 59. Kg3 {[%emt 0:00:13]} Bf1 {[%emt 0:00:56]} 60. Bg4+ {[%emt 0:00:59]} 1-0

[Event "1st Sakatam Open 2024"]
[Site "Guwahati"]
[Date "2024.03.24"]
[Round "4.6"]
[White "Shaashvat Gupta"]
[Black "Kumar, Gaurav"]
[Result "0-1"]
[ECO "B45"]
[WhiteElo "1738"]
[BlackElo "2049"]
[Annotator "RC"]
[PlyCount "70"]
[EventDate "2024.03.24"]
[EventType "swiss"]
[EventCountry "IND"]
[SourceTitle "playchess.com"]
[Source "ChessBase"]
[SourceQuality "1"]
[TimeControl "5400+30"]

1. e4 {[%emt 1:31:00]} c5 {[%emt 0:10:37]} 2. Nf3 {[%emt 0:00:00]} Nc6 {[%emt 0:00:18]} 3. d4 {[%emt 0:00:00]} cxd4 {[%emt 0:00:06]} 4. Nxd4 {[%emt 0:00:00]} Nf6 {[%emt 0:00:14]} 5. Nc3 {[%emt 0:00:00]} e6 {[%emt 0:01:44]} 6. Bg5 {[%emt 0:00:00]} Bb4 {[%emt 0:02:01]} 7. Nxc6 {[%emt 0:00:00]} bxc6 {[%emt 0:00:25]} 8. Bd3 {[%emt 0:00:00]} h6 {[%emt 0:01:19]} 9. Bd2 {[%emt 0:00:00]} e5 {[%emt 0:04:03]} 10. O-O {[%emt 0:00:00]} O-O {[%emt 0:00:08]} 11. f4 {[%emt 0:00:00]} d5 {[%emt 0:03:21]} 12. Kh1 {[%emt 0:00:00]} d4 {[%emt 0:01:28]} 13. fxe5 {[%emt 0:00:00]} Ng4 {[%emt 0:04:44]} 14. Ne2 {[%emt 0:00:00]} Bxd2 {[%emt 0:05:15]} 15. Qxd2 {[%emt 0:00:00]} Ne3 {[%emt 0:00:17]} 16. Rf3 {[%emt 0:00:00]} c5 {[%emt 0:07:18]} 17. c3 {[%emt 0:00:00]} Bg4 {[%emt 0:02:10]} 18. Rg3 {[%emt 0:00:00]} Bxe2 {[%emt 0:00:30]} 19. Bxe2 {[%emt 0:00:00]} Qe7 {[%emt 0:04:33]} 20. e6 {[%emt 0:00:00]} fxe6 {[%emt 0:00:44]} 21. cxd4 {[%emt 0:00:00]} cxd4 {[%emt 0:00:11]} 22. Rf3 {[%emt 0:00:00]} Rfc8 {[%emt 0:07:50]} 23. Bd1 {[%emt 0:00:00]} Qh4 {[%emt 0:06:10]} 24. Bb3 {[%emt 0:00:00]} Qxe4 {[%emt 0:01:15]} 25. Re1 {[%emt 0:00:00]} Kh8 {[%emt 0:03:37]} 26. Qb4 {[%emt 0:00:00]} a5 {[%emt 0:03:57]} 27. Qd6 {[%emt 0:00:00]} Rc6 {[%emt 0:08:20]} 28. Qg3 {[%emt 0:00:00]} a4 {[%emt 0:12:42]} 29. Bd1 {[%emt 0:00:00]} Rc1 {[%emt 0:01:03]} 30. h3 {[%emt 0:00:00]} Qb1 {[%emt 0:04:04]} 31. Rf7 {[%emt 0:00:00]} Rg8 {[%emt 0:00:09]} 32. Qf4 {[%emt 0:00:00]} Rxd1 {[%emt 0:00:37]} 33. Rxd1 {[%emt 0:00:00]} Qxd1+ {[%emt 0:00:12]} 34. Kh2 {[%emt 0:00:00]} Qe2 {[%emt 0:03:21]} 35. Rxg7 {[%emt 0:00:00]} Nf1+ {[%emt 0:00:40]} 0-1

[Event "1st Sakatam Open 2024"]
[Site "Guwahati"]
[Date "2024.03.24"]
[Round "4.7"]
[White "Snehaal Roy"]
[Black "Singh, Y. Dhanabir"]
[Result "0-1"]
[ECO "B77"]
[WhiteElo "1738"]
[BlackElo "1996"]
[Annotator "RC"]
[PlyCount "70"]
[EventDate "2024.03.24"]
[EventType "swiss"]
[EventCountry "IND"]
[SourceTitle "playchess.com"]
[Source "ChessBase"]
[SourceQuality "1"]
[TimeControl "5400+30"]

1. e4 {[%emt 0:00:30]} c5 {[%emt 0:00:21]} 2. Nf3 {[%emt 0:00:44]} d6 {[%emt 0:00:10]} 3. d4 {[%emt 0:00:44]} cxd4 {[%emt 0:00:04]} 4. Nxd4 {[%emt 0:00:07]} Nf6 {[%emt 0:00:06]} 5. Nc3 {[%emt 0:00:07]} g6 {[%emt 0:00:06]} 6. Be3 {[%emt 0:01:01]} Bg7 {[%emt 0:00:04]} 7. f3 {[%emt 0:00:11]} O-O {[%emt 0:00:07]} 8. Qd2 {[%emt 0:00:03]} Nc6 {[%emt 0:00:07]} 9. Bc4 {[%emt 0:01:05]} Nxd4 {[%emt 0:00:10]} 10. Bxd4 {[%emt 0:00:11]} Be6 {[%emt 0:00:06]} 11. Bb3 {[%emt 0:04:53]} Qa5 {[%emt 0:00:30]} 12. O-O-O {[%emt 0:00:10]} b5 {[%emt 0:00:22]} 13. Kb1 {[%emt 0:01:32]} b4 {[%emt 0:01:06]} 14. Nd5 {[%emt 0:03:01]} Bxd5 {[%emt 0:00:17]} 15. exd5 {[%emt 0:00:11]} Rfc8 {[%emt 0:06:46]} 16. h4 {[%emt 0:21:55]} Qb5 {[%emt 0:02:49]} 17. c3 {[%emt 0:11:09]} bxc3 {[%emt 0:00:49]} 18. Bxc3 {[%emt 0:00:05]} a5 {[%emt 0:01:19]} 19. h5 {[%emt 0:03:15]} a4 {[%emt 0:01:41]} 20. Bc2 {[%emt 0:00:10]} Ne4 {[%emt 0:25:39]} 21. Bxe4 {[%emt 0:01:52]} Bxc3 {[%emt 0:00:10]} 22. Qf2 {[%emt 0:08:22]} Rab8 {[%emt 0:01:15]} 23. Rd2 {[%emt 0:00:11]} Bxd2 {[%emt 0:03:27]} 24. Qxd2 {[%emt 0:00:08]} a3 {[%emt 0:00:25]} 25. b3 {[%emt 0:00:14]} Qb4 {[%emt 0:01:27]} 26. Qf2 {[%emt 0:00:43]} Rc3 {[%emt 0:01:34]} 27. Bc2 {[%emt 0:12:34]} Rbc8 {[%emt 0:02:24]} 28. hxg6 {[%emt 0:05:40]} Rxc2 {[%emt 0:04:27]} 29. gxf7+ {[%emt 0:00:08]} Kxf7 {[%emt 0:02:11]} 30. Qe3 {[%emt 0:00:25]} Ke8 {[%emt 0:02:03]} 31. Qg5 {[%emt 0:01:04]} Rb2+ {[%emt 0:00:41]} 32. Ka1 {[%emt 0:00:06]} Rxa2+ {[%emt 0:00:16]} 33. Kxa2 {[%emt 0:00:06]} Rc2+ {[%emt 0:00:10]} 34. Ka1 {[%emt 0:00:03]} Qc3+ {[%emt 0:00:09]} 35. Kb1 {[%emt 0:00:03]} Qb2# {[%emt 0:00:11]} 0-1

[Event "1st Sakatam Open 2024"]
[Site "Guwahati"]
[Date "2024.03.24"]
[Round "4.8"]
[White "Arpan Das"]
[Black "Dhruv Phukan"]
[Result "1-0"]
[ECO "D36"]
[WhiteElo "2374"]
[BlackElo "1735"]
[Annotator "RC"]
[PlyCount "97"]
[EventDate "2024.03.24"]
[EventType "swiss"]
[EventCountry "IND"]
[SourceTitle "playchess.com"]
[Source "ChessBase"]
[SourceQuality "1"]
[TimeControl "5400+30"]

1. d4 {[%emt 0:06:16]} d5 {[%emt 0:00:27]} 2. c4 {[%emt 0:00:11]} e6 {[%emt 0:00:13]} 3. Nc3 {[%emt 0:00:05]} Nf6 {[%emt 0:00:21]} 4. cxd5 {[%emt 0:00:06]} exd5 {[%emt 0:00:20]} 5. Bg5 {[%emt 0:00:04]} c6 {[%emt 0:00:11]} 6. Qc2 {[%emt 0:00:04]} Be7 {[%emt 0:00:14]} 7. e3 {[%emt 0:00:07]} h6 {[%emt 0:00:20]} 8. Bf4 {[%emt 0:00:14]} a5 {[%emt 0:00:30]} 9. Bd3 {[%emt 0:00:07]} Nbd7 {[%emt 0:00:43]} 10. Nge2 {[%emt 0:00:13]} b5 {[%emt 0:00:42]} 11. O-O {[%emt 0:00:11]} Nb6 {[%emt 0:00:29]} 12. Nxb5 {[%emt 0:00:25]} cxb5 {[%emt 0:06:24]} 13. Bc7 {[%emt 0:00:00]} Qd7 {[%emt 0:00:45]} 14. Bxb6 {[%emt 0:00:00]} Bb7 {[%emt 1:25:51]} 15. Qc7 {[%emt 0:00:26]} Bd6 {[%emt 0:00:00]} 16. Qxd7+ {[%emt 0:00:17]} Nxd7 {[%emt 0:00:00]} 17. Bxb5 {[%emt 0:00:53]} Ba6 {[%emt 0:00:00]} 18. Nc3 {[%emt 0:00:39]} Bb4 {[%emt 0:00:00]} 19. Bxa6 {[%emt 0:03:10]} Rxa6 {[%emt 0:00:00]} 20. Bc7 {[%emt 0:00:08]} Bxc3 {[%emt 0:00:00]} 21. bxc3 {[%emt 0:00:04]} O-O {[%emt 0:00:00]} 22. Rfb1 {[%emt 0:00:10]} Rc8 {[%emt 0:00:00]} 23. Rb7 {[%emt 0:00:08]} Nf6 {[%emt 0:00:00]} 24. Rc1 {[%emt 0:00:17]} a4 {[%emt 0:00:00]} 25. f3 {[%emt 0:00:12]} Ne8 {[%emt 0:00:00]} 26. Bg3 {[%emt 0:00:19]} Rac6 {[%emt 0:00:00]} 27. Rb4 {[%emt 0:01:30]} Nf6 {[%emt 0:00:00]} 28. Be1 {[%emt 0:00:07]} Rc4 {[%emt 0:00:00]} 29. Rcb1 {[%emt 0:00:11]} Kf8 {[%emt 0:00:00]} 30. Kf2 {[%emt 0:00:06]} Ke8 {[%emt 0:00:00]} 31. Ke2 {[%emt 0:00:05]} Kd7 {[%emt 0:00:00]} 32. Kd3 {[%emt 0:00:07]} g5 {[%emt 0:00:00]} 33. e4 {[%emt 0:00:07]} h5 {[%emt 0:00:00]} 34. Bd2 {[%emt 0:00:17]} g4 {[%emt 0:00:00]} 35. e5 {[%emt 0:00:08]} Ne8 {[%emt 0:00:00]} 36. Rxc4 {[%emt 0:00:05]} Rxc4 {[%emt 0:00:00]} 37. Rb6 {[%emt 0:00:21]} Rc6 {[%emt 0:00:00]} 38. Rb4 {[%emt 0:00:22]} gxf3 {[%emt 0:00:00]} 39. gxf3 {[%emt 0:00:04]} Rg6 {[%emt 0:00:00]} 40. Rxa4 {[%emt 0:00:06]} Rg2 {[%emt 0:00:00]} 41. Ra7+ {[%emt 0:00:05]} Nc7 {[%emt 0:00:00]} 42. a4 {[%emt 0:00:25]} Kd8 {[%emt 0:00:00]} 43. h4 {[%emt 0:00:29]} Rf2 {[%emt 0:00:00]} 44. Ke3 {[%emt 0:00:28]} Rh2 {[%emt 0:00:00]} 45. c4 {[%emt 0:00:04]} Kc8 {[%emt 0:00:00]} 46. Ba5 {[%emt 0:00:18]} Ne6 {[%emt 0:00:00]} 47. cxd5 {[%emt 0:00:08]} Ng7 {[%emt 0:00:00]} 48. Rxf7 {[%emt 0:00:08]} Ne8 {[%emt 0:00:00]} 49. d6 {[%emt 0:00:05]} 1-0

[Event "1st Sakatam Open 2024"]
[Site "Guwahati"]
[Date "2024.03.25"]
[Round "5.1"]
[White "Abhrojyoty Nath"]
[Black "Kaustuv, Kundu"]
[Result "0-1"]
[ECO "A64"]
[WhiteElo "1845"]
[BlackElo "2388"]
[Annotator "RC"]
[PlyCount "66"]
[EventDate "2024.03.24"]
[EventType "swiss"]
[EventCountry "IND"]
[SourceTitle "playchess.com"]
[Source "ChessBase"]
[SourceQuality "1"]
[TimeControl "5400+30"]

1. d4 {[%emt 1:31:00]} Nf6 {[%emt 0:10:04]} 2. Nf3 {[%emt 0:00:00]} g6 {[%emt 0:00:15]} 3. g3 {[%emt 0:00:00]} Bg7 {[%emt 0:01:48]} 4. Bg2 {[%emt 0:00:00]} O-O {[%emt 0:00:28]} 5. O-O {[%emt 0:00:00]} d6 {[%emt 0:00:14]} 6. c4 {[%emt 0:00:00]} c5 {[%emt 0:01:27]} 7. d5 {[%emt 0:00:00]} e6 {[%emt 0:02:27]} 8. Nc3 {[%emt 0:00:00]} exd5 {[%emt 0:00:34]} 9. cxd5 {[%emt 0:00:00]} Re8 {[%emt 0:00:08]} 10. Nd2 {[%emt 0:00:00]} a6 {[%emt 0:00:14]} 11. a4 {[%emt 0:00:00]} Nbd7 {[%emt 0:00:06]} 12. Nc4 {[%emt 0:00:00]} Ne5 {[%emt 0:00:11]} 13. Nxe5 {[%emt 0:00:00]} Rxe5 {[%emt 0:00:10]} 14. e4 {[%emt 0:00:00]} Re8 {[%emt 0:00:54]} 15. h3 {[%emt 0:00:00]} Rb8 {[%emt 0:07:52]} 16. a5 {[%emt 0:00:00]} b5 {[%emt 0:01:35]} 17. axb6 {[%emt 0:00:00]} Qxb6 {[%emt 0:01:21]} 18. Re1 {[%emt 0:00:00]} Nd7 {[%emt 0:02:08]} 19. Qa4 {[%emt 0:00:00]} Qd8 {[%emt 0:05:29]} 20. Qc2 {[%emt 0:00:00]} c4 {[%emt 0:07:58]} 21. Ra4 {[%emt 0:00:00]} Ne5 {[%emt 0:02:18]} 22. Rd1 {[%emt 0:00:00]} Qc7 {[%emt 0:09:53]} 23. Bf1 {[%emt 0:00:00]} a5 {[%emt 0:07:38]} 24. Be3 {[%emt 0:00:00]} Bd7 {[%emt 0:02:36]} 25. Ra2 {[%emt 0:12:00]} f5 {[%emt 0:01:17]} 26. f4 {[%emt 0:00:00]} Nd3 {[%emt 0:07:04]} 27. Nb5 {[%emt 0:00:00]} Bxb5 {[%emt 0:03:49]} 28. Bxd3 {[%emt 0:00:00]} Rbc8 {[%emt 0:04:21]} 29. Rc1 {[%emt 0:00:00]} Qb7 {[%emt 0:01:29]} 30. Bf1 {[%emt 0:00:00]} Rxe4 {[%emt 0:00:12]} 31. Bf2 {[%emt 0:00:00]} a4 {[%emt 0:00:13]} 32. Qd2 {[%emt 0:00:00]} Bd7 {[%emt 0:01:24]} 33. Bg2 {[%emt 0:00:42]} Qb3 {[%emt 0:01:12]} 0-1

[Event "1st Sakatam Open 2024"]
[Site "Guwahati"]
[Date "2024.03.25"]
[Round "5.2"]
[White "Arpan Das"]
[Black "Mrinmoy Rajkhowa"]
[Result "1/2-1/2"]
[ECO "B81"]
[WhiteElo "2374"]
[BlackElo "1901"]
[Annotator "RC"]
[PlyCount "59"]
[EventDate "2024.03.24"]
[EventType "swiss"]
[EventCountry "IND"]
[SourceTitle "playchess.com"]
[Source "ChessBase"]
[SourceQuality "1"]
[TimeControl "5400+30"]

1. e4 {[%emt 0:07:18]} c5 {[%emt 0:00:04]} 2. Nf3 {[%emt 0:00:07]} d6 {[%emt 0:00:04]} 3. d4 {[%emt 0:00:06]} cxd4 {[%emt 0:00:03]} 4. Nxd4 {[%emt 0:00:04]} Nf6 {[%emt 0:00:04]} 5. Nc3 {[%emt 0:00:06]} a6 {[%emt 0:00:03]} 6. h3 {[%emt 0:00:04]} e6 {[%emt 0:00:04]} 7. g4 {[%emt 0:00:06]} Nfd7 {[%emt 0:00:44]} 8. g5 {[%emt 0:00:16]} b5 {[%emt 0:00:39]} 9. Bg2 {[%emt 0:01:05]} Bb7 {[%emt 0:00:53]} 10. h4 {[%emt 0:02:13]} Be7 {[%emt 0:04:59]} 11. f4 {[%emt 0:02:43]} Nc6 {[%emt 0:02:40]} 12. Nde2 {[%emt 0:14:23]} b4 {[%emt 0:09:14]} 13. Nb1 {[%emt 0:08:29]} O-O {[%emt 0:08:39]} 14. b3 {[%emt 0:03:57]} Nc5 {[%emt 0:11:31]} 15. Bb2 {[%emt 0:09:55]} Re8 {[%emt 0:12:57]} 16. O-O {[%emt 0:05:39]} Bf8 {[%emt 0:03:10]} 17. Ng3 {[%emt 0:01:09]} e5 {[%emt 0:03:38]} 18. Nd2 {[%emt 0:04:59]} exf4 {[%emt 0:03:06]} 19. Rxf4 {[%emt 0:00:57]} Ne5 {[%emt 0:01:05]} 20. Qf1 {[%emt 0:04:31]} d5 {[%emt 0:09:01]} 21. Bxe5 {[%emt 0:10:26]} Rxe5 {[%emt 0:00:07]} 22. Rxf7 {[%emt 0:02:18]} dxe4 {[%emt 0:01:37]} 23. Nc4 {[%emt 0:01:02]} Re7 {[%emt 0:03:57]} 24. Rf5 {[%emt 0:11:06]} Qc7 {[%emt 0:13:49]} 25. Ne2 {[%emt 0:01:02]} Ree8 {[%emt 0:03:14]} 26. h5 {[%emt 0:02:47]} Ne6 {[%emt 0:01:53]} 27. g6 {[%emt 0:02:04]} Bc5+ {[%emt 0:00:15]} 28. Kh1 {[%emt 0:00:04]} Qe7 {[%emt 0:02:25]} 29. Rf7 {[%emt 0:05:25]} Qh4+ {[%emt 0:00:07]} 30. Bh3 {[%emt 0:00:02]} 1/2-1/2

[Event "1st Sakatam Open 2024"]
[Site "Guwahati"]
[Date "2024.03.25"]
[Round "5.3"]
[White "Srijon Saha"]
[Black "Subhayan Kundu"]
[Result "0-1"]
[ECO "E90"]
[WhiteElo "1812"]
[BlackElo "2353"]
[Annotator "RC"]
[PlyCount "98"]
[EventDate "2024.03.24"]
[EventType "swiss"]
[EventCountry "IND"]
[SourceTitle "playchess.com"]
[Source "ChessBase"]
[SourceQuality "1"]
[TimeControl "5400+30"]

1. c4 {[%emt 1:31:00]} Nf6 {[%emt 0:04:26]} 2. Nc3 {[%emt 0:00:00]} g6 {[%emt 0:00:27]} 3. d4 {[%emt 0:00:00]} Bg7 {[%emt 0:00:11]} 4. e4 {[%emt 0:00:00]} d6 {[%emt 0:00:11]} 5. h3 {[%emt 0:00:00]} O-O {[%emt 0:00:23]} 6. Be3 {[%emt 0:00:00]} Nc6 {[%emt 0:00:19]} 7. Nf3 {[%emt 0:00:00]} e5 {[%emt 0:00:28]} 8. d5 {[%emt 0:00:00]} Nd4 {[%emt 0:00:15]} 9. Nxd4 {[%emt 0:00:00]} exd4 {[%emt 0:00:26]} 10. Bxd4 {[%emt 0:00:00]} Nxe4 {[%emt 0:00:18]} 11. Bxg7 {[%emt 0:00:00]} Re8 {[%emt 0:00:03]} 12. Be2 {[%emt 0:00:00]} Kxg7 {[%emt 0:00:08]} 13. Qd4+ {[%emt 0:00:00]} Qf6 {[%emt 0:00:03]} 14. Qxf6+ {[%emt 0:00:00]} Kxf6 {[%emt 0:00:09]} 15. Nxe4+ {[%emt 0:00:00]} Rxe4 {[%emt 0:00:01]} 16. f3 {[%emt 0:00:00]} Re5 {[%emt 0:00:02]} 17. Kf2 {[%emt 0:00:00]} Bf5 {[%emt 0:00:43]} 18. Rhe1 {[%emt 0:00:00]} Rae8 {[%emt 0:00:17]} 19. g4 {[%emt 0:00:00]} Bd7 {[%emt 0:00:22]} 20. Rad1 {[%emt 0:00:00]} Re3 {[%emt 0:14:58]} 21. h4 {[%emt 0:00:00]} h6 {[%emt 0:00:30]} 22. Rd2 {[%emt 0:00:00]} a5 {[%emt 0:00:32]} 23. Rc1 {[%emt 0:00:00]} b6 {[%emt 0:00:30]} 24. Bd3 {[%emt 0:00:00]} R3e5 {[%emt 0:02:13]} 25. b3 {[%emt 0:00:00]} R5e7 {[%emt 0:02:17]} 26. Bf1 {[%emt 0:00:00]} g5 {[%emt 0:10:13]} 27. hxg5+ {[%emt 0:00:00]} hxg5 {[%emt 0:02:30]} 28. Bd3 {[%emt 0:00:00]} Rh8 {[%emt 0:01:45]} 29. Kg2 {[%emt 0:00:00]} Re3 {[%emt 0:03:00]} 30. Kf2 {[%emt 0:00:00]} Ree8 {[%emt 0:00:06]} 31. Kg2 {[%emt 0:00:00]} Rh4 {[%emt 0:02:05]} 32. Bf1 {[%emt 0:00:00]} Kg6 {[%emt 0:06:24]} 33. Re2 {[%emt 0:00:00]} Rxe2+ {[%emt 0:01:58]} 34. Bxe2 {[%emt 0:00:00]} f5 {[%emt 0:01:01]} 35. Bd3 {[%emt 0:00:00]} Kf6 {[%emt 0:00:07]} 36. Bxf5 {[%emt 0:00:00]} Bxf5 {[%emt 0:00:16]} 37. gxf5 {[%emt 0:00:00]} Rd4 {[%emt 0:00:16]} 38. Rc2 {[%emt 0:00:00]} Kxf5 {[%emt 0:01:16]} 39. Kg3 {[%emt 0:00:00]} a4 {[%emt 0:06:21]} 40. Rh2 {[%emt 0:00:00]} a3 {[%emt 0:04:39]} 41. Rh7 {[%emt 0:00:00]} Rd2 {[%emt 0:00:46]} 42. Rxc7 {[%emt 0:00:00]} Rxa2 {[%emt 0:00:50]} 43. Ra7 {[%emt 0:00:00]} Ra1 {[%emt 0:00:47]} 44. b4 {[%emt 0:00:00]} a2 {[%emt 0:00:44]} 45. Kg2 {[%emt 0:00:00]} Ke5 {[%emt 0:00:12]} 46. b5 {[%emt 0:00:00]} Kd4 {[%emt 0:00:17]} 47. Ra4 {[%emt 0:00:00]} Kc3 {[%emt 0:00:30]} 48. c5 {[%emt 0:00:00]} dxc5 {[%emt 0:01:13]} 49. d6 {[%emt 0:00:00]} Kb3 {[%emt 0:37:32]} 0-1

[Event "1st Sakatam Open 2024"]
[Site "Guwahati"]
[Date "2024.03.25"]
[Round "5.4"]
[White "Amlan Mahanta"]
[Black "Balkishan, A.."]
[Result "0-1"]
[ECO "A47"]
[WhiteElo "1789"]
[BlackElo "2108"]
[Annotator "RC"]
[PlyCount "44"]
[EventDate "2024.03.24"]
[EventType "swiss"]
[EventCountry "IND"]
[SourceTitle "playchess.com"]
[Source "ChessBase"]
[SourceQuality "1"]
[TimeControl "5400+30"]

1. d4 {[%emt 0:00:04]} Nf6 {[%emt 0:02:53]} 2. Bf4 {[%emt 0:00:16]} e6 {[%emt 0:01:50]} 3. e3 {[%emt 0:00:36]} Be7 {[%emt 0:00:06]} 4. Nd2 {[%emt 0:02:52]} b6 {[%emt 0:00:16]} 5. h3 {[%emt 0:02:32]} Bb7 {[%emt 0:00:03]} 6. Ngf3 {[%emt 0:00:08]} c5 {[%emt 0:01:21]} 7. c3 {[%emt 0:01:14]} d6 {[%emt 0:08:07]} 8. Bb5+ {[%emt 1:26:48]} Nc6 {[%emt 0:01:40]} 9. O-O {[%emt 0:00:00]} O-O {[%emt 0:00:13]} 10. Re1 {[%emt 0:00:00]} a6 {[%emt 0:01:28]} 11. Bf1 {[%emt 0:00:00]} Rc8 {[%emt 0:07:24]} 12. Bh2 {[%emt 0:00:00]} Re8 {[%emt 0:02:35]} 13. Rc1 {[%emt 0:00:00]} Bf8 {[%emt 0:01:46]} 14. e4 {[%emt 0:00:00]} e5 {[%emt 0:14:53]} 15. dxe5 {[%emt 0:00:00]} Nxe5 {[%emt 0:00:34]} 16. Nxe5 {[%emt 0:00:00]} dxe5 {[%emt 0:00:04]} 17. a4 {[%emt 0:00:00]} Qc7 {[%emt 0:05:18]} 18. Qc2 {[%emt 0:00:00]} Rcd8 {[%emt 0:01:43]} 19. Rcd1 {[%emt 0:00:00]} c4 {[%emt 0:13:58]} 20. Nxc4 {[%emt 0:00:00]} Rxd1 {[%emt 0:00:34]} 21. Rxd1 {[%emt 0:00:00]} Bxe4 {[%emt 0:01:36]} 22. Bd3 {[%emt 0:00:00]} Qxc4 {[%emt 0:00:18]} 0-1